bitfinex-derivatives/quotes_SOLF0:USTF0_20251023
["timestamp","ask_amount","ask_price","bid_price","bid_amount"]
[1761222992029,2.73,188.3,188.25,2.82]
[1761222992229,2.73,188.3,188.26,4.07935944]
[1761222992426,2.73,188.3,188.27,4.07935944]
[1761222992628,2.73,188.3,188.28,4.07935944]
[1761222992832,2.73,188.3,188.25,2.82]
[1761222993133,2.73,188.3,188.26,4.08057672]
[1761222993334,2.73,188.3,188.27,4.08057672]
[1761222993633,2.73,188.3,188.28,4.08057672]
[1761222993934,2.73,188.3,188.29,4.08057672]
[1761222996838,4.7786,188.31,188.29,4.08057672]
[1761222997037,44.8,188.32,188.3,4.08057672]
[1761222997236,47.53,188.32,188.27,2.82]
[1761222997536,47.53,188.32,188.29,2.82]
[1761222997740,47.53,188.32,188.3,4.06014494]
[1761222997930,47.53,188.32,188.29,2.82]
[1761222998126,47.53,188.32,188.3,4.06014494]
[1761222998334,47.53,188.32,188.26,9.66384111]
[1761222998638,47.53,188.32,188.27,6.88031798]
[1761222998837,47.53,188.32,188.28,4.06031798]
[1761222999137,47.53,188.32,188.29,4.06031798]
[1761222999354,6.74328322,188.36,188.31,2.82]
[1761222999355,4.7776,188.35,188.31,2.82]
[1761222999632,7.5076,188.35,188.32,4.06031798]
[1761222999831,7.5076,188.35,188.33,4.06031798]
[1761223000026,7.5076,188.35,188.34,4.06031798]
[1761223000431,7.5076,188.35,188.31,2.82]
[1761223000739,7.5076,188.35,188.32,4.05843626]
[1761223000933,7.5076,188.35,188.33,4.05843626]
[1761223001135,7.5076,188.35,188.34,4.05862628]
[1761223002340,2.73,188.32,188.28,4.88424111]
[1761223002738,2.73,188.32,188.28,7.70424111]
[1761223004138,2.73,188.32,188.29,4.88424111]
[1761223006740,2.73,188.32,188.28,4.88424111]
[1761223007247,4.7781,188.33,188.28,4.88424111]
[1761223007248,2.73,188.31,188.28,4.88424111]
[1761223007452,2.73,188.31,188.26,9.66394111]
[1761223007746,2.73,188.31,188.27,2.82]
[1761223007947,2.73,188.31,188.27,7.70424111]
[1761223008645,5.2430585,188.35,188.28,2.82]
[1761223009142,4.7781,188.33,188.28,7.70424111]
[1761223009348,4.7781,188.33,188.29,2.82]
[1761223009746,7.5076,188.35,188.29,2.82]
[1761223010540,7.5078,188.34,188.29,7.5989]
[1761223011141,4.7778,188.34,188.3,2.82]
[1761223011442,4.7773,188.36,188.3,2.82]
[1761223011643,47.45,188.37,188.3,2.82]
[1761223011842,2.73,188.36,188.3,2.82]
[1761223012937,4.7778,188.34,188.3,2.82]
[1761223013136,7.5078,188.34,188.3,2.82]
[1761223014747,4.7778,188.34,188.3,2.82]
[1761223014944,44.72,188.37,188.31,2.82]
[1761223015541,47.45,188.37,188.31,2.82]
[1761223015950,47.45,188.37,188.33,2.82]
[1761223016452,2.73,188.36,188.33,2.82]
[1761223017148,7.5073,188.36,188.33,2.82]
[1761223017340,4.7773,188.36,188.33,2.82]
[1761223018240,7.5073,188.36,188.33,2.82]
[1761223018446,44.72,188.37,188.35,2.82]
[1761223018950,2.73,188.41,188.35,2.82]
[1761223019948,2.64,188.39,188.34,4.88424111]
[1761223020153,2.64,188.39,188.35,2.69]
[1761223020660,2.64,188.39,188.34,4.88424111]
[1761223021046,7.4168,188.38,188.34,4.88424111]
[1761223022050,7.4168,188.38,188.34,7.57424111]
[1761223022558,7.4168,188.38,188.34,2.69]
[1761223024851,4.7764,188.4,188.35,2.69]
[1761223025057,2.64,188.39,188.33,9.66214111]
[1761223026052,7.4166,188.39,188.33,9.66214111]
[1761223028857,2.64,188.43,188.34,7.57424111]
[1761223029065,5.1530585,188.46,188.39,2.69]
[1761223029455,5.1530585,188.46,188.4,4.7761]
[1761223030152,2.64,188.46,188.4,4.7761]
[1761223030361,124.94011872,188.48,188.42,2.69]
[1761223030562,127.58011872,188.48,188.42,2.69]
[1761223031063,132.35451872,188.48,188.42,2.69]
[1761223031260,132.35451872,188.48,188.42,7.4654]
[1761223031657,44.7,188.48,188.42,2.69]
[1761223031865,2.64,188.51,188.38,6.51854411]
[1761223031866,2.64,188.51,188.46,2.69]
[1761223032770,2.64,188.51,188.4,62.0]
[1761223032771,2.64,188.51,188.47,2.69]
[1761223033163,5.1530585,188.54,188.47,2.69]
[1761223033357,44.7,188.55,188.48,2.69]
[1761223034259,44.7,188.55,188.5,7.4633]
[1761223034260,47.34,188.55,188.5,7.4633]
[1761223034456,47.34,188.55,188.51,2.69]
[1761223035264,47.34,188.55,188.51,7.463]
[1761223035561,2.64,188.58,188.52,2.69]
[1761223035772,5.1530585,188.61,188.52,2.69]
[1761223035972,49.8330585,188.61,188.52,2.69]
[1761223036273,49.8330585,188.61,188.54,7.4623]
[1761223036862,47.32,188.61,188.55,2.69]
[1761223037670,44.68,188.61,188.56,2.69]
[1761223037971,2.64,188.77,188.61,2.69]
[1761223038172,2.64,188.81,188.65,2.69]
[1761223038369,2.5130585,188.94,188.79,2.69]
[1761223038677,2.5130585,188.94,188.81,2.5130585]
[1761223038870,2.5130585,188.91,188.79,2.69]
[1761223039071,47.3930585,188.91,188.79,2.69]
[1761223039276,2.5130585,188.88,188.75,5.2030585]
[1761223040070,2.5130585,188.88,188.76,2.69]
[1761223040273,44.88,188.91,188.68,12.8]
[1761223040274,2.64,188.89,188.78,2.5130585]
[1761223040471,2.64,188.94,188.85,2.69]
[1761223041073,26.66,188.99,188.85,2.69]
[1761223041270,2.64,188.98,188.85,2.69]
[1761223044069,2.64,188.97,188.85,2.69]
[1761223045681,2.87,188.95,188.85,2.69]
[1761223045978,2.87,189.08,188.93,2.83]
[1761223046172,2.87,189.08,188.97,2.83]
[1761223046370,2.87,189.08,188.98,2.83]
[1761223047476,2.87,189.07,188.98,2.83]
[1761223048474,2.87,189.07,188.95,62.0]
[1761223048475,2.87,189.04,188.93,2.83]
[1761223049073,2.87,189.04,188.93,4.7624]
[1761223049269,2.62,189.1,188.98,2.63]
[1761223052676,2.62,189.09,188.98,2.63]
[1761223052880,2.62,189.06,188.92,2.63]
[1761223053078,7.3794,189.06,188.93,4.7625]
[1761223053281,7.3794,189.06,188.94,2.63]
[1761223053476,4.06789732,189.07,188.94,2.63]
[1761223053477,2.62,189.05,188.94,2.63]
[1761223053985,2.62,189.02,188.9,0.17855]
[1761223054279,2.62,189.01,188.9,0.17855]
[1761223054977,4.7612,188.99,188.9,0.17855]
[1761223055373,8.82909732,188.99,188.9,0.17855]
[1761223055576,4.7617,188.97,188.9,0.17855]
[1761223055974,7.3817,188.97,188.9,0.17855]
[1761223058287,2.62,188.94,188.9,0.17855]
[1761223058787,2.62,188.92,188.9,0.17855]
[1761223063282,7.3831,188.91,188.9,0.17855]
[1761223063876,7.3831,188.91,188.76,4.06789732]
[1761223063877,2.62,188.9,188.8,2.63]
[1761223064690,2.62,188.87,188.8,2.63]
[1761223064897,2.62,188.87,188.73,2.63]
[1761223065186,2.62,188.87,188.72,4.06789732]
[1761223065187,4.7646,188.86,188.76,2.63]
[1761223065991,7.3846,188.86,188.76,2.63]
[1761223066182,4.7649,188.84,188.76,2.63]
[1761223067190,7.3849,188.84,188.76,2.63]
[1761223067592,4.7654,188.82,188.76,2.63]
[1761223067990,2.62,188.84,188.73,2.63]
[1761223068191,4.7659,188.8,188.73,2.63]
[1761223068891,4.7664,188.78,188.69,2.63]
[1761223069090,2.62,188.82,188.69,2.63]
[1761223069499,2.62,188.82,188.7,4.24746163]
[1761223069787,2.62,188.82,188.71,4.24746163]
[1761223069994,7.3866,188.77,188.72,4.24746163]
[1761223070189,7.3866,188.77,188.69,2.63]
[1761223070190,4.7666,188.77,188.69,2.63]
[1761223070395,7.3866,188.77,188.7,4.25239907]
[1761223070590,7.3866,188.77,188.71,4.25239907]
[1761223070890,2.62,188.76,188.72,4.25239907]
[1761223071086,2.62,188.76,188.73,4.25239907]
[1761223071287,2.62,188.76,188.74,4.26032708]
[1761223071496,7.3871,188.76,188.69,2.63]
[1761223071690,7.3871,188.76,188.64,62.0]
[1761223071691,2.62,188.76,188.7,4.2622288]
[1761223071885,2.62,188.76,188.71,4.2622288]
[1761223072086,2.62,188.76,188.65,2.63]
[1761223072087,2.62,188.76,188.72,4.2622288]
[1761223072287,2.62,188.76,188.73,4.26996245]
[1761223072499,2.62,188.75,188.74,4.26996245]
[1761223075591,2.62,188.69,188.53,2.63]
[1761223075796,5.76,188.73,188.57,2.63]
[1761223076101,5.76,188.73,188.61,2.63]
[1761223076400,4.768,188.72,188.61,2.63]
[1761223077589,7.388,188.72,188.61,2.63]
[1761223078002,4.7684,188.7,188.61,2.63]
[1761223079299,7.5084,188.7,188.61,2.63]
[1761223080295,4.7678,188.73,188.62,2.61]
[1761223080794,7.5078,188.73,188.62,2.61]
[1761223081497,2.74,188.7,188.62,2.61]
[1761223083092,7.5087,188.69,188.62,2.61]
[1761223083293,2.74,188.68,188.62,2.61]
[1761223083895,2.74,188.68,188.58,4.7712]
[1761223083896,7.5092,188.67,188.58,2.61]
[1761223084694,4.7692,188.67,188.58,2.61]
[1761223084904,7.5097,188.65,188.58,2.61]
[1761223085790,2.74,188.63,188.54,2.61]
[1761223086199,2.74,188.63,188.56,2.61]
[1761223087602,2.74,188.63,188.57,4.20292899]
[1761223087804,2.74,188.63,188.58,4.20292899]
[1761223088003,2.74,188.63,188.59,4.20292899]
[1761223088191,2.74,188.63,188.6,4.20292899]
[1761223088395,2.74,188.63,188.61,4.20292899]
[1761223088600,2.74,188.63,188.62,4.20292899]
[1761223091008,2.74,188.63,188.62,4.19575107]
[1761223091208,2.74,188.63,188.56,2.61]
[1761223091509,2.74,188.63,188.57,4.1958719]
[1761223091697,2.74,188.63,188.58,6.8058719]
[1761223091901,2.74,188.63,188.59,4.1958719]
[1761223092101,2.74,188.63,188.6,4.1958719]
[1761223092298,4.7695,188.66,188.61,4.1958719]
[1761223092501,2.74,188.65,188.62,4.19575502]
[1761223092709,2.74,188.65,188.58,2.61]
[1761223093007,2.74,188.65,188.59,4.19575443]
[1761223093207,2.74,188.65,188.6,4.19575443]
[1761223093406,2.74,188.65,188.61,4.19575443]
[1761223093606,2.74,188.65,188.62,4.19575443]
[1761223093806,2.74,188.65,188.58,2.61]
[1761223094011,7.5098,188.65,188.59,4.19681485]
[1761223094204,2.74,188.64,188.6,4.19681485]
[1761223094405,2.74,188.64,188.61,4.19681485]
[1761223094605,2.74,188.64,188.62,4.19681485]
[1761223094808,2.74,188.64,188.58,2.61]
[1761223095005,4.7692,188.67,188.6,2.61]
[1761223095311,4.7692,188.67,188.61,6.80932595]
[1761223095502,7.5092,188.67,188.62,6.80932595]
[1761223095713,4.7692,188.67,188.63,6.80932595]
[1761223096003,4.06789732,188.73,188.64,4.19932595]
[1761223096004,4.7687,188.69,188.64,4.19932595]
[1761223096209,44.88,188.74,188.65,4.19932595]
[1761223096514,2.74,188.71,188.66,4.19932595]
[1761223096811,2.74,188.68,188.59,7.3811]
[1761223097116,2.74,188.68,188.6,4.20583423]
[1761223097411,2.74,188.72,188.62,2.61]
[1761223098010,2.74,188.72,188.57,4.06789732]
[1761223098011,2.74,188.69,188.6,4.7708]
[1761223098606,4.7694,188.66,188.58,7.3814]
[1761223098805,7.5094,188.66,188.58,7.3814]
[1761223101106,4.769,188.68,188.53,4.88424111]
[1761223101310,2.74,188.7,188.6,2.61]
[1761223103113,7.5085,188.7,188.62,7.3802]
[1761223103313,7.5085,188.7,188.63,2.61]
[1761223104607,4.7679,188.72,188.63,2.61]
[1761223105013,7.4279,188.72,188.63,2.61]
[1761223105211,7.4283,188.71,188.64,4.7697]
[1761223105714,7.4283,188.71,188.64,7.5997]
[1761223106822,2.66,188.7,188.64,7.5997]
[1761223107018,2.66,188.68,188.61,2.83]
[1761223108015,2.66,188.68,188.62,4.7703]
[1761223108611,2.66,188.68,188.61,2.83]
[1761223108911,2.66,188.68,188.6,4.7708]
[1761223109115,2.66,188.68,188.6,9.65504111]
[1761223109508,2.66,188.68,188.6,4.7708]
[1761223109814,2.66,188.68,188.6,7.4908]
[1761223110015,4.7696,188.66,188.6,7.4908]
[1761223110411,4.7696,188.66,188.6,12.37504111]
[1761223111724,7.4289,188.68,188.61,2.72]
[1761223113214,7.4289,188.68,188.61,7.60424111]
[1761223114716,414.0,188.84,188.66,2.72]
[1761223114920,2.72,188.85,188.74,2.72]
[1761223115119,2.72,188.85,188.75,7.61553732]
[1761223115324,2.72,188.85,188.75,2.72]
[1761223115526,2.72,188.85,188.76,2.72]
[1761223115719,2.72,188.85,188.73,4.89553732]
[1761223115914,2.72,188.85,188.69,4.89553732]
[1761223116126,2.72,188.85,188.69,7.61553732]
[1761223117024,7.4863,188.79,188.7,4.7682]
[1761223117415,2.72,188.79,188.7,4.7682]
[1761223117620,2.72,188.78,188.68,4.89553732]
[1761223118022,2.72,188.78,188.65,4.89553732]
[1761223118225,2.72,188.78,188.62,4.89553732]
[1761223118929,15.9,188.78,188.62,4.89553732]
[1761223119132,2.72,188.77,188.61,7.61553732]
[1761223119632,2.72,188.76,188.61,2.72]
[1761223122419,2.72,188.76,188.62,4.7704]
[1761223122628,2.72,188.76,188.63,2.72]
[1761223122832,2.72,188.76,188.65,2.72]
[1761223124226,2.72,188.75,188.65,2.72]
[1761223125926,4.7683,188.71,188.65,2.72]
[1761223128226,2.72,188.75,188.65,9.43545374]
[1761223128530,2.72,188.75,188.66,2.72]
[1761223128824,44.88,188.78,188.66,2.72]
[1761223128825,44.88,188.78,188.67,2.72]
[1761223129023,4.7669,188.76,188.7,2.72]
[1761223130324,4.7672,188.75,188.67,4.769]
[1761223130526,2.72,188.79,188.66,2.72]
[1761223130729,2.72,188.77,188.66,2.72]
[1761223131528,4.7677,188.73,188.66,2.72]
[1761223134431,7.4877,188.73,188.66,2.72]
[1761223135432,4.7677,188.73,188.67,2.72]
[1761223135633,7.4877,188.73,188.66,4.7692]
[1761223136430,2.72,188.71,188.64,2.72]
[1761223138030,4.7685,188.7,188.64,2.72]
[1761223138831,4.7685,188.7,188.64,7.4897]
[1761223139532,4.7685,188.7,188.65,2.8]
[1761223140535,4.7685,188.7,188.65,4.7695]
[1761223140742,4.768,188.72,188.66,2.8]
[1761223141137,4.768,188.72,188.66,7.5692]
[1761223141437,7.588,188.72,188.67,2.8]
[1761223142639,2.82,188.72,188.67,2.8]
[1761223142842,2.82,188.75,188.62,7.69553732]
[1761223143141,2.82,188.75,188.64,2.8]
[1761223143932,4.768,188.72,188.64,7.5697]
[1761223144134,2.82,188.75,188.65,2.8]
[1761223144640,4.7675,188.74,188.68,2.8]
[1761223145536,4.7669,188.76,188.7,2.8]
[1761223146343,2.82,188.74,188.7,2.8]
[1761223147040,4.7672,188.75,188.7,2.8]
[1761223148840,7.5872,188.75,188.7,2.8]
[1761223149142,4.7672,188.75,188.7,2.8]
[1761223149336,2.82,188.74,188.7,2.8]
[1761223151535,2.82,188.74,188.68,4.7687]
[1761223151536,7.5874,188.74,188.68,4.7687]
[1761223152346,7.5874,188.74,188.68,7.5687]
[1761223152842,4.7669,188.76,188.69,4.7685]
[1761223153145,2.82,188.78,188.71,2.8]
[1761223153347,2.82,188.82,188.72,4.7677]
[1761223153545,2.82,188.82,188.74,2.8]
[1761223153941,4.7657,188.81,188.74,4.7672]
[1761223154140,4.7657,188.81,188.75,2.8]
[1761223154649,2.82,188.82,188.76,2.8]
[1761223155758,2.82,188.82,188.72,7.71278391]
[1761223155946,2.82,188.82,188.72,2.8]
[1761223157149,4.7665,188.78,188.72,2.8]
[1761223158046,2.82,188.82,188.73,2.8]
[1761223159049,7.5854,188.82,188.75,7.5669]
[1761223159245,7.5854,188.82,188.75,2.8]
[1761223159452,4.7654,188.82,188.75,2.8]
[1761223159848,2.82,188.86,188.71,2.8]
[1761223160043,2.82,188.86,188.72,2.8]
[1761223160240,4.7659,188.8,188.73,4.7674]
[1761223160445,4.7659,188.8,188.73,7.5674]
[1761223161147,4.7659,188.8,188.74,2.8]
[1761223161448,4.7659,188.8,188.75,2.8]
[1761223162547,4.7654,188.82,188.75,4.7669]
[1761223162745,4.7654,188.82,188.75,2.8]
[1761223162952,2.82,188.84,188.75,2.8]
[1761223163547,4.7657,188.81,188.75,2.8]
[1761223164847,4.7657,188.81,188.75,7.5669]
[1761223165850,7.5757,188.81,188.76,7.3667]
[1761223167457,2.81,188.81,188.76,7.3667]
[1761223170649,2.81,188.81,188.76,7.5867]
[1761223172355,2.77,188.8,188.76,4.7667]
[1761223172559,2.77,188.8,188.74,4.7671]
[1761223173954,7.5361,188.79,188.74,4.7671]
[1761223174162,7.5361,188.79,188.74,7.5871]
[1761223174559,7.5361,188.79,188.75,2.82]
[1761223174754,4.7665,188.78,188.71,2.82]
[1761223174959,2.77,188.77,188.71,2.82]
[1761223175947,2.77,188.77,188.73,4.7674]
[1761223176153,2.77,188.77,188.73,7.5874]
[1761223178860,2.77,188.86,188.77,2.82]
[1761223179159,2.77,188.85,188.78,1.60049417]
[1761223179765,2.77,188.83,188.75,4.7669]
[1761223179959,2.77,188.83,188.75,6.36739417]
[1761223180164,2.77,188.83,188.75,9.18739417]
[1761223181167,4.7655,188.82,188.75,9.18739417]
[1761223181562,6.36599417,188.82,188.75,9.18739417]
[1761223181763,4.7656,188.81,188.75,7.5869]
[1761223183369,2.77,188.81,188.73,4.7675]
[1761223183568,16.24436002,188.87,188.73,6.36799417]
[1761223183569,1.60049417,188.8,188.73,6.36799417]
[1761223183764,2.77,188.79,188.71,1.60049417]
[1761223184071,2.77,188.79,188.72,2.82]
[1761223184566,4.7664,188.78,188.72,7.5877]
[1761223184772,4.7664,188.78,188.73,2.82]
[1761223185166,9.13689417,188.78,188.73,2.82]
[1761223185866,2.77,188.77,188.73,2.82]
[1761223186364,4.7664,188.78,188.73,2.82]
[1761223186570,9.13689417,188.78,188.73,2.82]
[1761223186763,7.5364,188.78,188.73,2.82]
[1761223194178,2.77,188.77,188.73,2.82]
[1761223196174,2.77,188.76,188.71,7.73278391]
[1761223196375,2.77,188.74,188.7,4.91278391]
[1761223196578,1.60049417,188.73,188.7,2.82]
[1761223197081,1.60049417,188.75,188.7,2.82]
[1761223197281,4.37049417,188.75,188.7,2.82]
[1761223198286,9.13769417,188.75,188.7,2.82]
[1761223199390,2.74,188.74,188.7,2.82]
[1761223199982,7.5074,188.74,188.7,2.82]
[1761223200175,2.74,188.73,188.69,2.87]
[1761223200380,4.7678,188.72,188.68,7.78278391]
[1761223200580,7.5078,188.72,188.68,2.87]
[1761223200982,2.74,188.7,188.66,4.91278391]
[1761223201174,2.74,188.7,188.65,7.78278391]
[1761223201373,4.7689,188.68,188.64,4.91278391]
[1761223201687,2.74,188.66,188.63,4.91278391]
[1761223201990,54.2141,188.75,188.62,113.94196596]
[1761223201991,4.34049417,188.65,188.62,113.94196596]
[1761223202183,1.60049417,188.65,188.62,111.89918205]
[1761223202380,1.60049417,188.67,188.63,2.87]
[1761223202578,4.34049417,188.74,188.65,1.60049417]
[1761223202772,9.80811712,188.8,188.7,2.87]
[1761223202773,4.34049417,188.78,188.7,2.87]
[1761223203287,9.10689417,188.78,188.71,7.6378]
[1761223203681,7.5064,188.78,188.71,4.7678]
[1761223203881,7.5064,188.78,188.72,7.6376]
[1761223204780,4.7659,188.8,188.73,6.36789417]
[1761223204983,4.7659,188.8,188.74,2.87]
[1761223205184,4.34049417,188.82,188.75,7.69542746]
[1761223205388,2.74,188.8,188.76,4.82542746]
[1761223205586,2.74,188.8,188.77,4.82542746]
[1761223205889,2.74,188.8,188.78,4.82542746]
[1761223206091,2.74,188.8,188.79,4.82542746]
[1761223207381,4.34049417,188.84,188.79,7.69542746]
[1761223207577,2.74,188.84,188.8,4.82542746]
[1761223207789,2.74,188.84,188.81,4.82542746]
[1761223207990,2.74,188.84,188.82,4.82542746]
[1761223208292,2.74,188.84,188.83,4.82542746]
[1761223209780,4.7646,188.85,188.83,4.82542746]
[1761223210080,4.94460753,188.88,188.84,4.82418768]
[1761223210081,7.504,188.87,188.84,4.82418768]
[1761223210284,7.504,188.87,188.81,1.60049417]
[1761223210285,2.74,188.87,188.81,1.60049417]
[1761223210484,2.74,188.87,188.82,4.82315593]
[1761223210691,4.34049417,188.84,188.83,4.82315593]
[1761223213690,2.74,188.82,188.76,2.87]
[1761223213997,1.60049417,188.8,188.77,7.69263195]
[1761223214295,2.74,188.82,188.78,4.82263195]
[1761223214495,2.74,188.82,188.79,4.82263195]
[1761223214685,2.74,188.82,188.73,2.87]
[1761223214889,2.74,188.82,188.74,7.6842866]
[1761223215090,2.74,188.82,188.75,4.8142866]
[1761223215292,2.74,188.82,188.76,4.8142866]
[1761223215492,1.60049417,188.8,188.77,7.6842866]
[1761223215802,1.60049417,188.8,188.78,4.8142866]
[1761223215997,1.60049417,188.8,188.7,4.91278391]
[1761223216197,1.60049417,188.72,188.69,2.87]
[1761223216399,4.94460753,188.81,188.69,2.87]
[1761223216400,1.60049417,188.74,188.69,2.87]
[1761223217190,6.36739417,188.76,188.69,2.87]
[1761223218398,1.60049417,188.76,188.7,2.87]
[1761223218999,1.60049417,188.78,188.71,2.87]
[1761223219200,49.4263,188.79,188.71,2.87]
[1761223219397,1.60049417,188.78,188.71,2.87]
[1761223219592,2.74,188.75,188.71,2.87]
[1761223220395,1.60049417,188.76,188.71,2.87]
[1761223220900,4.34049417,188.76,188.71,2.87]
[1761223226805,2.74,188.76,188.71,2.87]
[1761223233603,4.7667,188.77,188.72,2.64]
[1761223233905,7.4967,188.77,188.72,2.64]
[1761223234206,2.73,188.76,188.72,2.64]
[1761223238316,49.4267,188.77,188.72,2.64]
[1761223238610,44.66,188.77,188.73,2.64]
[1761223239113,2.73,188.77,188.73,2.64]
[1761223239614,4.7664,188.78,188.73,2.64]
[1761223240309,4.7664,188.78,188.73,7.4074]
[1761223240310,2.73,188.78,188.73,7.4074]
[1761223240608,4.7659,188.8,188.74,2.64]
[1761223240815,47.37,188.82,188.74,2.64]
[1761223241515,47.37,188.82,188.76,2.64]
[1761223241817,414.0,188.94,188.76,2.64]
[1761223241818,7.4936,188.89,188.83,2.64]
[1761223242008,47.37,188.89,188.83,2.64]
[1761223242316,44.64,188.89,188.83,2.64]
[1761223242614,2.73,188.88,188.83,2.64]
[1761223243013,2.73,188.87,188.83,2.64]
[1761223243213,2.73,188.87,188.84,4.80594296]
[1761223243512,47.37,188.89,188.85,4.80594296]
[1761223243717,44.64,188.89,188.86,4.80594296]
[1761223243918,2.73,188.88,188.84,2.64]
[1761223244104,2.73,188.88,188.85,4.80484159]
[1761223244412,2.73,188.88,188.86,4.80484159]
[1761223244615,2.73,188.88,188.84,2.64]
[1761223244806,2.73,188.88,188.85,4.80300621]
[1761223245006,2.73,188.88,188.86,4.80300621]
[1761223245202,47.14157817,188.89,188.87,4.80189178]
[1761223245414,78.93676011,188.91,188.88,4.8011983]
[1761223245613,78.93676011,188.91,188.79,7.40173067]
[1761223245614,7.67195388,188.99,188.9,2.64]
[1761223245818,47.37,188.98,188.91,4.80045113]
[1761223246113,47.37,188.98,188.92,4.80045113]
[1761223246309,47.37,188.98,188.82,2.50157817]
[1761223246310,2.73,188.98,188.94,2.64]
[1761223246515,2.73,188.98,188.95,4.79270375]
[1761223246707,2.73,188.98,188.91,2.64]
[1761223246908,2.73,188.98,188.92,7.431313]
[1761223247115,2.73,188.98,188.88,2.50157817]
[1761223247116,2.73,188.98,188.94,2.64]
[1761223247419,2.73,188.98,188.95,4.791313]
[1761223247715,2.73,188.98,188.94,2.64]
[1761223248016,2.50157817,189.01,188.95,4.78796932]
[1761223248216,2.50157817,189.01,188.94,2.64]
[1761223249816,47.37,189.02,188.95,4.77765104]
[1761223250013,5.23157817,189.02,188.96,4.77765104]
[1761223250221,49.85157817,189.02,188.94,2.64]
[1761223250421,49.85157817,189.02,188.95,4.77180138]
[1761223250613,49.85157817,189.02,188.96,4.77180138]
[1761223250815,49.85157817,189.02,188.94,2.64]
[1761223251014,2.73,189.01,188.95,4.77313877]
[1761223251215,2.50157817,189.0,188.94,2.64]
[1761223253119,2.73,189.02,188.94,7.402]
[1761223253327,2.73,189.02,188.96,2.64]
[1761223255125,2.50157817,189.04,188.96,2.64]
[1761223255327,47.33,189.05,188.96,2.64]
[1761223255827,47.33,189.05,188.98,2.64]
[1761223256028,2.73,189.04,188.95,2.64]
[1761223256232,44.6,189.05,188.95,2.64]
[1761223256233,2.73,189.02,188.95,2.64]
[1761223256636,5.23157817,189.02,188.95,2.64]
[1761223257325,2.73,189.02,188.95,2.64]
[1761223258531,2.73,188.99,188.94,4.762]
[1761223258828,2.73,188.99,188.95,2.81]
[1761223260533,2.50157817,189.0,188.95,2.81]
[1761223260932,5.25157817,189.0,188.95,2.81]
[1761223261731,2.50157817,189.0,188.95,2.81]
[1761223262235,5.25157817,189.0,188.95,2.81]
[1761223262832,2.75,189.0,188.95,2.81]
[1761223263335,2.75,189.0,188.95,4.7618]
[1761223263633,2.75,189.0,188.96,2.81]
[1761223265038,2.75,189.0,188.92,2.81]
[1761223265238,2.75,188.97,188.92,2.81]
[1761223266333,2.75,188.97,188.88,111.8437616]
[1761223266534,2.75,188.97,188.89,7.5569499]
[1761223266736,2.50157817,189.0,188.89,7.5569499]
[1761223266737,2.75,188.94,188.89,2.81]
[1761223267134,2.75,188.91,188.88,109.0337616]